bitfinex-derivatives/quotes_BTCF0:USTF0_20260314
["timestamp","ask_amount","ask_price","bid_price","bid_amount"]
[1773468770803,0.042292,70924.0,70913.0,0.0014]
[1773468775104,0.042292,70924.0,70913.0,0.08927381]
[1773468790115,0.042286,70934.0,70921.0,0.042294]
[1773468790314,0.042287,70932.0,70922.0,0.08787381]
[1773468790612,0.042287,70932.0,70923.0,0.0014]
[1773468791204,0.042265,70970.0,70930.0,0.042288]
[1773468791408,0.04228,70944.0,70931.0,0.08927381]
[1773468791614,0.042281,70943.0,70932.0,0.0014]
[1773468791814,0.042281,70943.0,70931.0,0.08787381]
[1773468792017,0.042281,70942.0,70933.0,0.0014]
[1773468792220,0.001,70934.0,70933.0,0.0014]
[1773468792407,0.042281,70942.0,70933.0,0.0014]
[1773468792610,0.042281,70942.0,70934.0,0.0014]
[1773468793011,0.042281,70942.0,70931.0,0.08787381]
[1773468793214,0.042281,70942.0,70932.0,0.0014]
[1773468793515,0.042281,70942.0,70931.0,0.08787381]
[1773468793707,0.042281,70942.0,70932.0,0.0014]
[1773468794107,0.042281,70942.0,70933.0,0.0014]
[1773468794615,0.042281,70942.0,70934.0,0.0014]
[1773468795118,0.042279,70946.0,70935.0,0.0014]
[1773468795513,0.04228,70945.0,70935.0,0.0014]
[1773468795725,0.04228,70945.0,70936.0,0.0014]
[1773468795909,0.04228,70945.0,70934.0,0.08787381]
[1773468796115,0.04228,70945.0,70935.0,0.08927381]
[1773468796413,0.04228,70945.0,70935.0,0.08787381]
[1773468796619,0.04228,70945.0,70936.0,0.0014]
[1773468796919,0.04228,70945.0,70935.0,0.08787381]
[1773468797116,0.04228,70945.0,70936.0,0.0014]
[1773468797419,0.04228,70945.0,70935.0,0.08787381]
[1773468797620,0.04228,70945.0,70936.0,0.0014]
[1773468797920,0.04228,70945.0,70935.0,0.08787381]
[1773468798114,0.04228,70945.0,70936.0,0.0014]
[1773468798516,0.04228,70945.0,70937.0,0.0014]
[1773468798914,0.04228,70945.0,70935.0,0.08787381]
[1773468799114,0.04228,70945.0,70936.0,0.0014]
[1773468799418,0.04228,70945.0,70935.0,0.08787381]
[1773468799621,0.04228,70945.0,70936.0,0.0014]
[1773468799919,0.04228,70945.0,70935.0,0.08787381]
[1773468800120,0.04228,70945.0,70936.0,0.0014]
[1773468800510,0.04228,70945.0,70937.0,0.0014]
[1773468800916,0.04228,70945.0,70935.0,0.08787381]
[1773468801118,0.04228,70945.0,70936.0,0.0014]
[1773468801422,0.04228,70945.0,70935.0,0.08787381]
[1773468801615,0.04228,70945.0,70936.0,0.0014]
[1773468802007,0.04228,70945.0,70937.0,0.0014]
[1773468802214,0.042281,70944.0,70937.0,0.0014]
[1773468802409,0.042281,70944.0,70935.0,0.08787381]
[1773468802613,0.042281,70944.0,70936.0,0.26995775]
[1773468802815,0.042281,70944.0,70937.0,0.26855775]
[1773468803016,0.03948091,70944.0,70938.0,0.26995775]
[1773468803210,0.03948091,70944.0,70939.0,0.26855775]
[1773468803420,0.07343122,70950.0,70940.0,7.5e-07]
[1773468803622,0.07343122,70950.0,70941.0,0.0014]
[1773468803916,0.07343122,70950.0,70935.0,0.08787381]
[1773468804118,0.042281,70944.0,70936.0,0.0014]
[1773468804718,0.042281,70944.0,70937.0,0.0014]
[1773468805621,0.042281,70944.0,70938.0,0.0014]
[1773468805819,0.04157602,70944.0,70938.0,0.0014]
[1773468806212,0.04157602,70944.0,70931.0,0.13066094]
[1773468806418,0.04157602,70944.0,70932.0,0.08977394]
[1773468807124,0.04157602,70944.0,70933.0,0.0014]
[1773468807526,0.04157602,70944.0,70934.0,0.0014]
[1773468808031,0.04157602,70944.0,70932.0,0.08837394]
[1773468808217,0.04157602,70944.0,70935.0,0.0014]
[1773468809128,0.04157602,70944.0,70936.0,0.0014]
[1773468809627,0.04157602,70944.0,70937.0,0.0014]
[1773468809926,0.042281,70943.0,70937.0,0.0014]
[1773468810538,0.042281,70943.0,70938.0,0.0014]
[1773468811028,0.042281,70943.0,70939.0,0.0014]
[1773468811931,0.042281,70943.0,70932.0,0.08837394]
[1773468812132,0.042281,70943.0,70933.0,0.0014]
[1773468812523,0.042281,70943.0,70934.0,0.0014]
[1773468812923,0.042282,70942.0,70932.0,0.08837394]
[1773468813128,0.042282,70942.0,70933.0,0.0014]
[1773468813431,0.04228,70944.0,70933.0,0.0014]
[1773468813624,0.042281,70942.0,70933.0,0.0014]
[1773468813824,0.042281,70942.0,70934.0,0.0014]
[1773468814631,0.042281,70942.0,70932.0,0.08837394]
[1773468814831,0.042281,70942.0,70933.0,0.0014]
[1773468815132,0.042281,70942.0,70934.0,0.0014]
[1773468815529,0.042281,70942.0,70932.0,0.08837394]
[1773468815729,0.042281,70942.0,70935.0,0.0014]
[1773468816130,0.042281,70942.0,70936.0,0.0014]
[1773468816533,0.042281,70942.0,70932.0,0.08837394]
[1773468816734,0.042281,70942.0,70937.0,0.0014]
[1773468817033,0.042281,70942.0,70932.0,0.08837394]
[1773468817235,0.042281,70942.0,70938.0,0.0014]
[1773468817634,0.042281,70942.0,70939.0,0.0014]
[1773468817934,0.042281,70942.0,70940.0,0.0014]
[1773468818136,0.042281,70942.0,70941.0,0.0014]
[1773468819026,0.042281,70942.0,70932.0,0.08837394]
[1773468819331,0.08005292,70946.0,70932.0,0.21018685]
[1773468819631,0.042284,70937.0,70933.0,0.0014]
[1773468819825,0.042284,70937.0,70926.0,0.31564638]
[1773468820031,0.042284,70937.0,70927.0,0.0014]
[1773468820236,0.042284,70937.0,70927.0,0.31704638]
[1773468820534,0.042284,70937.0,70928.0,0.0014]
[1773468820931,0.042284,70937.0,70929.0,0.0014]
[1773468821133,0.042284,70937.0,70929.0,0.31704638]
[1773468821436,0.042284,70937.0,70930.0,0.0014]
[1773468821934,0.042284,70937.0,70931.0,0.0014]
[1773468822633,0.042284,70937.0,70932.0,0.0014]
[1773468823333,0.042283,70939.0,70932.0,0.0014]
[1773468823737,0.042284,70938.0,70932.0,0.0014]
[1773468828841,0.042284,70938.0,70936.0,7.6e-07]
[1773468831033,0.042284,70938.0,70932.0,0.0014]
[1773468835238,0.07343122,70950.0,70932.0,0.0014]
[1773468835445,0.07343122,70950.0,70932.0,0.08770524]
[1773468835939,0.042281,70943.0,70932.0,0.08770524]
[1773468837446,0.07343122,70950.0,70932.0,0.09070524]
[1773468837642,0.08986262,70949.0,70932.0,0.0064]
[1773468838342,0.08986262,70949.0,70932.0,0.005]
[1773468838546,0.08986262,70949.0,70933.0,0.0014]
[1773468839048,0.042283,70940.0,70934.0,0.0014]
[1773468839437,0.042283,70940.0,70935.0,0.0014]
[1773468839937,0.042283,70940.0,70936.0,0.0014]
[1773468840341,0.042283,70940.0,70928.0,0.40195162]
[1773468840544,0.042283,70940.0,70929.0,0.0014]
[1773468840838,0.042283,70940.0,70928.0,0.40195162]
[1773468841040,0.042283,70940.0,70929.0,0.0014]
[1773468841446,0.042283,70940.0,70930.0,0.0014]
[1773468841838,0.042283,70940.0,70928.0,0.40195162]
[1773468842148,0.042283,70940.0,70929.0,0.0014]
[1773468842444,0.042283,70940.0,70930.0,0.0014]
[1773468842849,0.042283,70940.0,70928.0,0.40195162]
[1773468843148,0.042283,70940.0,70929.0,0.043689]
[1773468843447,0.042283,70940.0,70930.0,0.0014]
[1773468843843,0.042283,70940.0,70929.0,0.35793538]
[1773468844141,0.042283,70940.0,70930.0,0.0014]
[1773468844348,0.042283,70940.0,70929.0,0.35793538]
[1773468844645,0.042283,70940.0,70930.0,0.0014]
[1773468844845,0.042283,70940.0,70929.0,0.35793538]
[1773468845044,0.042283,70940.0,70930.0,0.0014]
[1773468845353,0.042283,70940.0,70929.0,0.35793538]
[1773468845543,0.042283,70940.0,70930.0,0.0014]
[1773468845944,0.042283,70940.0,70931.0,0.0014]
[1773468846347,0.042283,70940.0,70929.0,0.35793538]
[1773468846539,0.042283,70940.0,70930.0,0.0014]
[1773468846853,0.042283,70940.0,70929.0,0.35793538]
[1773468847039,0.042283,70940.0,70930.0,0.0014]
[1773468847441,0.042283,70940.0,70931.0,0.0014]
[1773468847642,0.042282,70942.0,70931.0,0.08770524]
[1773468847840,0.042282,70942.0,70931.0,0.08630524]
[1773468848051,0.042282,70942.0,70932.0,0.0014]
[1773468849554,0.042282,70942.0,70933.0,0.25370083]
[1773468849747,0.042282,70942.0,70938.0,0.25370083]
[1773468849947,0.042282,70942.0,70939.0,0.0014]
[1773468853548,0.16325504,70950.0,70939.0,0.0014]
[1773468853748,0.042278,70948.0,70939.0,0.0014]
[1773468853952,0.042279,70947.0,70939.0,0.0014]
[1773468855453,0.08986262,70959.0,70939.0,0.0014]
[1773468855850,0.08986262,70966.0,70944.0,0.04228]
[1773468856150,0.07339242,70960.0,70944.0,0.25370083]
[1773468856357,0.08986262,70962.0,70944.0,0.25370083]
[1773468856652,0.001,70959.0,70944.0,0.25370083]
[1773468857055,0.001,70959.0,70945.0,0.0014]
[1773468857249,0.08986262,70962.0,70945.0,0.0014]
[1773468858257,0.09126262,70969.0,70945.0,0.08770524]
[1773468858950,0.042271,70960.0,70947.0,0.042278]
[1773468859758,0.042272,70959.0,70947.0,0.042278]
[1773468869756,0.04227,70961.0,70949.0,0.08743546]
[1773468870458,0.04227,70961.0,70948.0,0.042277]
[1773468870859,0.042271,70960.0,70948.0,0.042277]
[1773468872171,0.042271,70960.0,70948.0,0.29597783]
[1773468872869,0.042271,70960.0,70948.0,0.042277]
[1773468873169,0.042271,70960.0,70948.0,0.29597783]
[1773468873872,0.042271,70960.0,70949.0,0.08743546]
[1773468874263,0.042271,70960.0,70949.0,0.34113629]
[1773468874966,0.042271,70960.0,70949.0,0.08743546]
[1773468875166,0.042271,70960.0,70949.0,0.34113629]
[1773468875869,0.042269,70962.0,70950.0,0.25370083]
[1773468876171,0.042269,70962.0,70951.0,0.0014]
[1773468876568,0.04227,70961.0,70951.0,0.0014]
[1773468878174,0.04227,70961.0,70951.0,0.25510083]
[1773468879075,0.04227,70961.0,70951.0,0.0014]
[1773468879269,0.04227,70961.0,70951.0,0.25510083]
[1773468879970,0.08707343,70969.0,70952.0,0.042275]
[1773468880164,0.08707343,70969.0,70952.0,0.29597583]
[1773468881174,0.042268,70964.0,70952.0,0.29597583]
[1773468883181,0.042268,70964.0,70953.0,0.25370083]
[1773468883677,0.042268,70964.0,70952.0,0.042275]
[1773468884174,0.042268,70964.0,70952.0,0.29597583]
[1773468886176,0.07339242,70970.0,70951.0,0.0014]
[1773468886380,0.02582948,70957.0,70937.0,0.042284]
[1773468886575,0.02582948,70957.0,70935.0,0.0014]
[1773468886576,0.042276,70951.0,70938.0,0.042283]
[1773468887182,0.042276,70951.0,70939.0,0.042283]
[1773468888984,0.042276,70951.0,70939.0,0.044283]
[1773468890281,0.042276,70951.0,70939.0,0.047283]
[1773468891683,0.042276,70951.0,70939.0,0.045283]
[1773468891882,0.042276,70951.0,70939.0,0.047283]
[1773468894888,0.042276,70951.0,70939.0,0.045283]
[1773468895089,0.042276,70951.0,70939.0,0.044283]
[1773468895290,0.042276,70951.0,70939.0,0.047283]
[1773468898477,0.042276,70951.0,70939.0,0.13581198]
[1773468899488,0.042276,70951.0,70940.0,0.08852898]
[1773468899686,0.042276,70951.0,70941.0,0.0014]
[1773468901088,0.042276,70951.0,70941.0,0.0044]
[1773468901898,0.042276,70951.0,70941.0,0.0064]
[1773468903294,0.042276,70952.0,70942.0,0.0917162]
[1773468904387,0.042276,70952.0,70942.0,0.0937162]
[1773468904897,0.042276,70952.0,70942.0,0.0967162]
[1773468905289,0.042276,70951.0,70942.0,0.0967162]
[1773468905993,0.07337654,70960.0,70943.0,0.0014]
[1773468906394,0.07337654,70960.0,70944.0,0.0014]
[1773468907003,0.07337654,70960.0,70945.0,0.0014]
[1773468907392,0.042277,70950.0,70942.0,0.003]
[1773468907592,0.042277,70950.0,70943.0,0.0014]
[1773468908487,0.042277,70950.0,70944.0,0.0014]
[1773468908990,0.042277,70950.0,70945.0,0.0014]
[1773468909400,0.042277,70950.0,70938.0,0.13484384]
[1773468909603,0.042277,70950.0,70939.0,0.0014]
[1773468909999,0.042277,70950.0,70940.0,0.0014]
[1773468910398,0.042277,70950.0,70938.0,0.13484384]
[1773468910598,0.042277,70950.0,70939.0,0.0014]
[1773468910801,0.07337654,70950.0,70933.0,0.31650536]
[1773468910998,0.042284,70938.0,70934.0,0.0014]
[1773468911302,0.042284,70938.0,70935.0,0.0014]
[1773468911496,0.042284,70938.0,70936.0,0.0014]
[1773468911696,0.042284,70938.0,70926.0,0.13485533]
[1773468911892,0.042284,70938.0,70927.0,0.0014]
[1773468912098,0.042284,70938.0,70926.0,0.13485533]
[1773468912099,0.042284,70938.0,70928.0,0.0014]
[1773468912598,0.042284,70938.0,70929.0,0.0014]
[1773468912998,0.042284,70938.0,70926.0,0.13485533]
[1773468913201,0.042284,70938.0,70928.0,0.002]
[1773468913600,0.042284,70938.0,70929.0,0.0014]
[1773468914004,0.042284,70938.0,70928.0,0.003]
[1773468914202,0.042284,70938.0,70929.0,0.0014]
[1773468914506,0.042284,70938.0,70928.0,0.003]
[1773468914707,0.042284,70938.0,70929.0,0.0014]
[1773468914900,0.042284,70938.0,70928.0,0.003]
[1773468915207,0.042283,70940.0,70930.0,0.0014]
[1773468915501,0.042283,70940.0,70931.0,0.0014]
[1773468916003,0.042283,70940.0,70932.0,0.0014]
[1773468916409,0.042283,70940.0,70926.0,0.13485533]
[1773468916605,0.042283,70940.0,70927.0,0.0014]
[1773468916798,0.042283,70940.0,70927.0,0.04369]
[1773468916995,0.042283,70940.0,70928.0,0.0014]
[1773468917498,0.042283,70940.0,70929.0,0.0014]
[1773468917913,0.042283,70940.0,70927.0,0.04229]
[1773468918099,0.042283,70940.0,70928.0,0.0014]
[1773468918499,0.042283,70940.0,70929.0,0.0014]
[1773468919001,0.042283,70940.0,70930.0,0.0014]
[1773468919399,0.042283,70940.0,70927.0,0.04229]
[1773468919596,0.042283,70940.0,70928.0,0.0014]
[1773468920008,0.042283,70940.0,70929.0,0.0014]
[1773468920406,0.042283,70940.0,70927.0,0.04229]
[1773468920706,0.042283,70940.0,70928.0,0.0014]
[1773468920907,0.042283,70940.0,70927.0,0.04229]
[1773468921106,0.042283,70940.0,70928.0,0.0014]
[1773468922104,0.042283,70940.0,70929.0,0.042289]
[1773468922310,0.042283,70940.0,70930.0,0.09124969]
[1773468935817,0.02618026,70939.0,70916.0,0.3164921]
[1773468936121,0.02618026,70938.0,70914.0,0.08961214]
[1773468936320,0.042288,70931.0,70918.0,0.042295]
[1773468936520,0.042288,70931.0,70919.0,0.09101214]
[1773468937026,0.042288,70931.0,70920.0,0.09101214]
[1773468939430,0.042289,70930.0,70920.0,0.09101214]
[1773468939828,0.07337654,70930.0,70917.0,0.0014]
[1773468940032,0.07337654,70930.0,70918.0,0.0014]
[1773468940626,0.07337654,70930.0,70919.0,0.0014]
[1773468940827,0.07337654,70930.0,70920.0,0.0014]
[1773468941029,0.042291,70926.0,70921.0,0.0014]
[1773468941229,0.042291,70926.0,70912.0,0.13191114]
[1773468941429,0.042291,70926.0,70913.0,0.0014]
[1773468941630,0.042292,70925.0,70914.0,0.0014]
[1773468942133,0.042292,70925.0,70921.0,0.002]
[1773468942323,0.042292,70925.0,70913.0,0.042298]
[1773468942632,0.04229,70927.0,70913.0,0.042298]
[1773468942824,0.04229,70927.0,70914.0,0.0034]
[1773468943127,0.04229,70927.0,70914.0,0.002]
[1773468943324,0.04229,70927.0,70915.0,0.0014]
[1773468943630,0.04229,70927.0,70914.0,0.002]
[1773468943831,0.04229,70927.0,70915.0,0.0014]
[1773468944326,0.04229,70927.0,70913.0,0.045298]
[1773468944327,0.04229,70927.0,70916.0,0.0014]
[1773468944721,0.04229,70927.0,70917.0,0.0014]
[1773468945134,0.04229,70927.0,70913.0,0.044298]
[1773468945332,0.04229,70927.0,70914.0,0.0014]
[1773468945630,0.04229,70927.0,70913.0,0.042298]
[1773468945832,0.04229,70927.0,70914.0,0.0014]
[1773468946031,0.04229,70927.0,70914.0,0.043698]
[1773468946331,0.04229,70927.0,70915.0,0.0014]
[1773468946633,0.04229,70927.0,70914.0,0.042298]
[1773468946833,0.042292,70924.0,70915.0,0.0014]
[1773468947033,0.042292,70924.0,70911.0,0.042299]
[1773468947233,0.042292,70924.0,70916.0,0.0014]
[1773468947636,0.042292,70924.0,70917.0,0.0014]
[1773468951737,0.042292,70924.0,70917.0,0.0034]
[1773468951937,0.042292,70924.0,70917.0,0.0064]
[1773468962043,0.042288,70931.0,70922.0,0.08248511]
[1773468962244,0.042289,70930.0,70918.0,0.08248511]
[1773468962451,0.042289,70930.0,70923.0,0.0014]
[1773468962748,0.042289,70929.0,70923.0,0.0014]
[1773468962948,0.042291,70927.0,70923.0,0.0014]
[1773468963649,0.042291,70926.0,70924.0,0.0014]
[1773468963844,0.042292,70925.0,70917.0,0.003]
[1773468964044,0.042292,70925.0,70918.0,0.0014]
[1773468964251,0.042292,70925.0,70919.0,0.0014]
[1773468965755,0.0856211,70934.0,70919.0,0.0014]
[1773468965958,0.0856211,70934.0,70919.0,0.0044]
[1773468966260,0.042293,70922.0,70860.0,0.12055779]
[1773468966557,0.042305,70903.0,70891.0,0.08248511]
[1773468966753,0.042306,70901.0,70891.0,0.08248511]
[1773468966944,0.042306,70901.0,70892.0,0.86434725]
[1773468967144,0.0856211,70912.0,70895.0,0.02538004]
[1773468967350,0.042303,70907.0,70896.0,0.0014]
[1773468968958,0.042303,70907.0,70806.0,0.000706]
[1773468968959,0.1412,70905.0,70851.0,0.005]
[1773468969147,0.07343261,70880.0,70863.0,0.10373166]
[1773468969347,0.0607466,70886.0,70866.0,0.10379266]
[1773468969553,0.07343261,70890.0,70868.0,0.10379266]
[1773468969855,0.26976172,70889.0,70872.0,0.10379266]
[1773468970153,0.00015981,70888.0,70874.0,0.10379266]
[1773468970356,0.00015981,70888.0,70875.0,0.0014]
[1773468970952,0.00015981,70888.0,70875.0,0.043721]
[1773468971950,0.00015981,70888.0,70875.0,0.10492104]
[1773468972151,0.042307,70899.0,70875.0,0.10492104]
[1773468972352,0.042308,70897.0,70876.0,0.10092986]
[1773468972552,0.001,70888.0,70876.0,0.10092986]
[1773468972954,0.042308,70897.0,70882.0,0.042317]
[1773468973147,7.77e-05,70896.0,70883.0,0.043716]
[1773468973348,7.77e-05,70896.0,70884.0,0.10232986]
[1773468974353,0.07343261,70894.0,70884.0,0.10232986]
[1773468974554,0.0856211,70883.0,70835.0,0.09817835]
[1773468974753,0.07343261,70870.0,70855.0,0.042333]
[1773468974957,0.07343261,70870.0,70857.0,0.14051035]
[1773468975263,0.07343261,70870.0,70858.0,0.09817835]
[1773468975559,0.00015728,70869.0,70858.0,0.09817835]
[1773468976164,0.042326,70867.0,70857.0,0.0014]
[1773468976360,6.1e-07,70850.0,70848.0,0.042337]
[1773468976561,0.07343261,70858.0,70849.0,0.0014]
[1773468976954,0.07343261,70858.0,70849.0,0.08388511]
[1773468977154,0.00015728,70869.0,70853.0,0.08248511]
[1773468977961,0.00015728,70869.0,70855.0,0.042333]
[1773468978163,0.00015728,70869.0,70856.0,0.0014]
[1773468978966,0.07343261,70866.0,70856.0,0.0014]
[1773468980463,0.11775961,70866.0,70856.0,0.0014]
[1773468980763,0.002,70866.0,70856.0,0.0014]
[1773468980966,0.00015728,70869.0,70856.0,0.08388511]
[1773468981356,0.00015728,70869.0,70856.0,0.08383511]
[1773468981964,0.00015728,70869.0,70856.0,0.043682]
[1773468982265,0.00015728,70869.0,70857.0,0.12153449]
[1773468982465,0.00015728,70869.0,70859.0,0.12153449]
[1773468982656,0.07343261,70870.0,70859.0,0.12153449]
[1773468982851,0.46128807,70916.0,70856.0,0.00135]
[1773468982852,0.001,70866.0,70861.0,0.12153449]
[1773468983062,0.042316,70884.0,70857.0,0.12153449]
[1773468983366,0.07343261,70880.0,70873.0,0.12153449]
[1773468983567,0.07343261,70883.0,70874.0,0.0014]
[1773468983769,0.00010031,70882.0,70875.0,0.0014]
[1773468984062,0.07343261,70883.0,70876.0,0.0014]
[1773468984269,0.07343261,70883.0,70867.0,0.12153449]
[1773468984270,0.042318,70881.0,70877.0,0.0014]
[1773468984570,0.042318,70881.0,70878.0,0.0014]
[1773468984758,0.042318,70881.0,70867.0,0.12153449]
[1773468984970,0.042318,70881.0,70868.0,0.12293449]
[1773468985361,0.042319,70879.0,70868.0,0.12293449]
[1773468986164,0.042319,70879.0,70874.0,0.003]
[1773468986370,0.042319,70879.0,70875.0,0.0014]
[1773468986570,0.042318,70881.0,70875.0,0.0014]
[1773468986768,0.042318,70881.0,70876.0,0.002]
[1773468987272,0.0014,70894.0,70876.0,0.12353449]
[1773468987470,0.042315,70886.0,70876.0,0.12353449]
[1773468987662,0.042315,70886.0,70876.0,0.12153449]
[1773468987962,0.042316,70884.0,70876.0,0.12153449]
[1773468988470,0.042317,70883.0,70875.0,0.0014]
[1773468991071,0.043317,70883.0,70875.0,0.0014]
[1773468993372,0.042317,70882.0,70875.0,0.0014]
[1773468993571,0.042317,70882.0,70869.0,0.042325]
[1773468993572,0.042319,70879.0,70876.0,0.0014]
[1773468993873,0.042318,70881.0,70877.0,0.0014]
[1773468994074,0.042318,70881.0,70878.0,0.0014]
[1773468994271,0.042319,70880.0,70878.0,0.0014]
[1773468995365,0.042319,70880.0,70878.0,1.4e-07]
[1773468995968,0.042319,70880.0,70867.0,0.12148463]
[1773468996277,0.042319,70880.0,70868.0,0.12293449]
[1773468997174,0.043319,70880.0,70868.0,0.12293449]
[1773468997578,0.043319,70880.0,70868.0,0.0014]
[1773468997880,0.042319,70880.0,70868.0,0.0014]
[1773468999476,0.042318,70881.0,70869.0,0.042325]
[1773469000877,0.12927192,70887.0,70868.0,0.0014]
[1773469000878,0.042318,70880.0,70868.0,0.0014]
[1773469002880,0.12927192,70887.0,70868.0,0.0014]
[1773469003079,0.27801886,70886.0,70868.0,0.0014]
[1773469003277,0.40729078,70885.0,70868.0,0.0014]
[1773469003478,0.27801886,70884.0,70868.0,0.0014]
[1773469004581,0.04232,70877.0,70868.0,0.0014]
[1773469010686,0.042319,70879.0,70868.0,0.0014]
[1773469011079,0.04232,70878.0,70868.0,0.0014]
[1773469014390,0.04232,70877.0,70868.0,0.0014]
[1773469014685,0.04232,70877.0,70869.0,0.0014]
[1773469015586,0.12691161,70879.0,70855.0,0.11862261]
[1773469015782,0.0735206,70890.0,70856.0,0.0014]
[1773469015783,0.0735206,70870.0,70856.0,0.0014]
[1773469015983,0.1158446,70870.0,70857.0,0.0014]
[1773469016178,0.1158446,70870.0,70858.0,0.0014]
[1773469016389,0.1158446,70870.0,70851.0,0.11862261]
[1773469016586,0.042325,70868.0,70854.0,0.042333]
[1773469016791,0.042325,70868.0,70855.0,0.043733]
[1773469017282,0.042325,70868.0,70855.0,0.042333]
[1773469017485,0.042325,70868.0,70856.0,0.0014]
[1773469017788,0.12691161,70869.0,70857.0,0.0014]
[1773469017983,0.042329,70863.0,70857.0,0.0014]
[1773469018494,0.042329,70863.0,70858.0,0.0014]
[1773469018797,0.042329,70863.0,70859.0,0.0014]
[1773469019384,0.042327,70865.0,70859.0,0.0014]
[1773469020488,0.042327,70865.0,70860.0,0.0014]
[1773469020687,0.042327,70865.0,70861.0,0.0014]
[1773469020891,0.042327,70865.0,70858.0,0.002]
[1773469021190,0.042327,70865.0,70859.0,0.0014]
[1773469021387,0.042327,70865.0,70858.0,0.002]
[1773469021593,0.042327,70865.0,70859.0,0.0014]
[1773469021986,0.042327,70865.0,70860.0,0.0014]
[1773469022188,0.042327,70865.0,70861.0,0.0014]
[1773469022391,0.042327,70865.0,70862.0,0.0014]
[1773469022585,0.042328,70864.0,70850.0,0.042336]
[1773469022790,0.042328,70864.0,70851.0,0.0014]
[1773469023791,0.04233,70860.0,70851.0,0.0014]
[1773469024295,0.07355737,70870.0,70853.0,0.042334]
[1773469024792,0.042326,70867.0,70854.0,0.042333]
[1773469025786,0.042326,70867.0,70855.0,0.042333]
[1773469026495,0.042326,70867.0,70853.0,0.042334]
[1773469027293,0.042326,70867.0,70855.0,0.11862261]
[1773469027989,0.042323,70873.0,70859.0,0.042331]
[1773469028195,0.12691161,70877.0,70858.0,0.11862261]
[1773469028391,0.042324,70872.0,70858.0,0.16095361]
[1773469028590,0.12691161,70877.0,70860.0,0.04233]
[1773469028794,0.12691161,70877.0,70861.0,0.0014]
[1773469028989,0.042323,70873.0,70861.0,0.0014]
[1773469029192,0.042323,70872.0,70861.0,0.0014]
[1773469032396,0.042322,70874.0,70861.0,0.0014]
[1773469032895,0.042321,70876.0,70862.0,0.042329]
[1773469033093,0.07355737,70880.0,70864.0,0.11862261]
[1773469033285,0.12691161,70887.0,70866.0,0.042326]
[1773469033491,0.04232,70878.0,70864.0,0.042328]
[1773469033797,0.04232,70878.0,70865.0,0.042327]
[1773469036492,0.04332,70878.0,70865.0,0.042327]
[1773469037406,0.001,70878.0,70861.0,0.0014]
[1773469038996,0.042321,70876.0,70863.0,0.042328]
[1773469039998,0.042322,70874.0,70861.0,0.043729]
[1773469040198,0.042321,70875.0,70862.0,0.042328]
[1773469041206,0.11963341,70879.0,70858.0,0.11862261]
[1773469041397,0.11963341,70879.0,70859.0,0.0014]
[1773469041905,0.11963341,70879.0,70858.0,0.11862261]
[1773469042106,0.11963341,70879.0,70860.0,0.0014]
[1773469042306,0.11963341,70879.0,70861.0,0.042329]
[1773469042711,0.11963341,70879.0,70866.0,0.16906154]
[1773469043009,0.042322,70875.0,70867.0,0.0014]
[1773469043204,0.042322,70875.0,70868.0,0.0014]
[1773469045115,0.11963341,70877.0,70860.0,0.25359231]
[1773469045321,0.001,70879.0,70861.0,0.0014]
[1773469045322,0.042326,70867.0,70861.0,0.0014]
[1773469045621,0.042326,70867.0,70857.0,0.25359231]
[1773469045622,0.042326,70867.0,70862.0,0.0014]
[1773469047116,0.042326,70867.0,70862.0,0.0044]
[1773469048323,0.042326,70867.0,70863.0,0.0014]
[1773469048917,0.11963341,70868.0,70858.0,0.0014]
[1773469049119,0.11963341,70868.0,70859.0,0.0014]
[1773469049321,0.042329,70862.0,70860.0,0.0014]
[1773469049517,0.042329,70862.0,70849.0,0.042337]
[1773469049729,0.042329,70862.0,70850.0,0.0014]
[1773469050227,0.042329,70862.0,70858.0,0.003]
[1773469050419,0.042329,70862.0,70859.0,0.0014]
[1773469050614,0.042329,70862.0,70860.0,0.0014]
[1773469050823,0.042329,70862.0,70858.0,0.003]
[1773469051024,0.042329,70862.0,70859.0,0.0014]
[1773469051321,0.04233,70861.0,70860.0,0.0014]
[1773469051626,0.04233,70861.0,70850.0,0.004]
[1773469051826,0.04233,70861.0,70851.0,0.0014]
[1773469053625,0.04233,70861.0,70851.0,0.0024]
[1773469053826,0.04233,70861.0,70851.0,0.0054]
[1773469054026,0.11963341,70865.0,70852.0,0.0014]
[1773469054227,0.042331,70859.0,70853.0,0.0014]
[1773469054522,0.11963341,70861.0,70841.0,0.042341]
[1773469054727,0.07355737,70851.0,70842.0,0.0014]
[1773469054926,0.042334,70854.0,70842.0,0.0014]
[1773469055921,0.042334,70854.0,70842.0,0.043741]
[1773469057127,0.043334,70854.0,70842.0,0.043741]
[1773469058124,0.043334,70854.0,70830.0,0.07370993]
[1773469058125,0.11963341,70849.0,70834.0,0.31696066]
[1773469058316,0.16197041,70849.0,70836.0,0.042344]
[1773469058519,0.16197041,70849.0,70837.0,0.0014]
[1773469058719,0.042336,70851.0,70836.0,0.042344]
[1773469058920,0.042336,70851.0,70837.0,0.0014]
[1773469059116,0.042336,70851.0,70837.0,0.043743]
[1773469059326,0.042336,70851.0,70838.0,0.0014]
[1773469059832,0.042336,70851.0,70839.0,0.0014]
[1773469060130,0.042336,70851.0,70834.0,0.12028735]
[1773469060131,0.042337,70849.0,70840.0,0.0014]
[1773469060331,0.11963341,70848.0,70841.0,0.0014]
[1773469060826,0.11963341,70865.0,70842.0,0.12028735]
[1773469061026,0.11963341,70869.0,70848.0,0.042337]
[1773469061231,0.11963341,70869.0,70849.0,0.0014]
[1773469061633,0.04233,70861.0,70849.0,0.0014]
[1773469061834,0.04233,70860.0,70849.0,0.0014]
[1773469062727,0.042335,70853.0,70833.0,0.12758573]
[1773469062934,0.07355737,70850.0,70839.0,0.042342]
[1773469063126,0.07355737,70850.0,70840.0,0.0014]